bitfinex/quotes_SOLUSD_20240603
["timestamp","ask_amount","ask_price","bid_price","bid_amount"]
[1717454057106,3.0433826,165.56,165.52,6.4254]
[1717454057308,8.3233826,165.56,165.52,6.4254]
[1717454057516,5.28,165.55,165.52,6.4254]
[1717454058219,0.8084826,165.56,165.54,6.2529]
[1717454058385,0.8084826,165.56,165.55,0.34]
[1717454058894,6.0884826,165.56,165.55,0.17]
[1717454059282,6.0884826,165.56,165.5,6.0829]
[1717454059615,5.28,165.53,165.51,0.34]
[1717454060313,5.28,165.55,165.52,6.0829]
[1717454060497,5.28,165.55,165.53,0.17]
[1717454061008,5.28,165.55,165.53,0.34]
[1717454061610,5.28,165.54,165.53,0.34]
[1717454061818,0.8084826,165.56,165.53,6.8798]
[1717454062325,5.28,165.54,165.53,0.34]
[1717454062613,0.8084826,165.56,165.53,0.17]
[1717454062815,0.8084826,165.56,165.52,9.1151]
[1717454063184,0.8084826,165.56,165.53,6.5398]
[1717454063387,5.28,165.55,165.54,0.34]
[1717454063586,0.8084826,165.56,165.54,0.34]
[1717454063785,6.1884826,165.56,165.54,0.34]
[1717454065892,3.0432826,165.56,165.54,0.34]
[1717454066229,5.38,165.55,165.54,0.34]
[1717454066734,5.38,165.55,165.49,2.2357]
[1717454066888,7.615,165.55,165.5,0.17]
[1717454067195,5.38,165.52,165.5,0.17]
[1717454068209,5.38,165.52,165.5,0.34]
[1717454068794,2.235,165.55,165.5,2.5756]
[1717454069000,5.38,165.53,165.5,2.5756]
[1717454071214,5.38,165.53,165.5,0.34]
[1717454071429,5.38,165.52,165.5,0.34]
[1717454071720,7.6156,165.51,165.46,2.2361]
[1717454071935,5.38,165.49,165.45,2.2362]
[1717454072222,5.38,165.49,165.46,2.2361]
[1717454073097,5.38,165.49,165.47,0.34]
[1717454073511,2.2354,165.52,165.47,0.34]
[1717454073814,5.38,165.5,165.47,0.34]
[1717454076433,5.38,165.51,165.47,2.576]
[1717454079924,5.38,165.51,165.47,0.34]
[1717454080125,5.38,165.51,165.47,2.576]
[1717454080306,5.38,165.51,165.47,0.34]
[1717454082608,7.6155,165.51,165.47,0.34]
[1717454082808,5.38,165.51,165.47,0.34]
[1717454084417,2.2354,165.52,165.48,6.4532]
[1717454084619,5.38,165.51,165.49,0.34]
[1717454085023,7.6154,165.52,165.49,0.34]
[1717454085343,7.6154,165.52,165.5,0.34]
[1717454085633,7.6154,165.52,165.48,0.34]
[1717454085816,5.38,165.51,165.48,0.34]
[1717454086012,5.38,165.51,165.47,0.34]
[1717454086935,7.6156,165.5,165.47,0.17]
[1717454087111,7.6156,165.5,165.46,0.17]
[1717454087418,5.38,165.49,165.46,0.17]
[1717454088337,5.38,165.49,165.46,0.34]
[1717454088638,2.2355,165.51,165.46,0.34]
[1717454088845,5.38,165.49,165.46,2.5761]
[1717454089042,5.38,165.5,165.46,2.5761]
[1717454089214,2.2354,165.52,165.46,2.5761]
[1717454089412,5.38,165.5,165.46,2.5761]
[1717454090636,2.2354,165.52,165.47,2.236]
[1717454090829,2.2354,165.52,165.48,0.34]
[1717454091028,5.38,165.5,165.48,0.34]
[1717454093350,5.38,165.5,165.47,0.34]
[1717454095137,5.38,165.49,165.47,0.34]
[1717454095336,5.38,165.49,165.46,0.34]
[1717454095525,5.38,165.49,165.45,0.34]
[1717454095728,5.38,165.49,165.45,2.5762]
[1717454099040,5.38,165.49,165.45,0.34]
[1717454099562,7.6157,165.49,165.45,0.34]
[1717454100242,5.38,165.49,165.45,0.34]
[1717454101326,7.6158,165.49,165.45,0.34]
[1717454101656,5.38,165.48,165.46,0.17]
[1717454101954,5.38,165.48,165.45,0.17]
[1717454102133,5.38,165.48,165.44,0.34]
[1717454102661,7.6159,165.48,165.44,0.17]
[1717454102863,5.38,165.47,165.43,0.17]
[1717454103169,5.38,165.48,165.43,2.4065]
[1717454103342,5.38,165.48,165.43,0.17]
[1717454103542,5.38,165.48,165.43,2.2365]
[1717454103841,5.38,165.48,165.44,0.17]
[1717454104247,5.38,165.48,165.44,0.34]
[1717454104635,7.6159,165.48,165.44,0.34]
[1717454104940,7.6159,165.48,165.45,0.17]
[1717454105139,7.6159,165.48,165.43,0.34]
[1717454105453,7.6159,165.48,165.43,2.5765]
[1717454106070,2.2358,165.49,165.43,2.5765]
[1717454106363,5.38,165.48,165.43,2.5765]
[1717454110539,7.6159,165.48,165.43,2.5765]
[1717454110860,5.38,165.48,165.43,2.5765]
[1717454112672,5.38,165.48,165.43,11.64977564]
[1717454114970,2.2358,165.49,165.43,11.64977564]
[1717454114971,5.38,165.47,165.43,11.64977564]
[1717454115169,5.38,165.47,165.43,11.64983527]
[1717454116761,5.38,165.47,165.43,11.64989013]
[1717454117264,5.38,165.45,165.43,9.24339013]
[1717454117772,5.38,165.45,165.43,0.17]
[1717454118372,5.38,165.45,165.42,0.17]
[1717454119046,5.38,165.45,165.44,9.07427127]
[1717454119976,2.2361,165.47,165.42,9.41427127]
[1717454120569,8.3764,165.47,165.42,9.41427127]
[1717454121559,2.2361,165.47,165.42,9.41427127]
[1717454121760,2.2361,165.47,165.42,11.65097127]
[1717454122372,27.6159,165.48,165.43,11.31077127]
[1717454122543,22.2359,165.48,165.44,0.34]
[1717454122748,27.6159,165.48,165.44,0.34]
[1717454123052,27.6159,165.48,165.44,1.54805305]
[1717454123665,27.6159,165.48,165.44,0.34]
[1717454123866,7.616,165.47,165.44,0.34]
[1717454124866,5.38,165.47,165.44,0.34]
[1717454126983,2.2362,165.46,165.44,0.34]
[1717454127153,7.6162,165.46,165.44,0.34]
[1717454128167,5.38,165.46,165.44,0.34]
[1717454128968,2.2361,165.47,165.44,0.34]
[1717454129167,22.2359,165.48,165.44,0.34]
[1717454129365,2.2359,165.48,165.44,0.34]
[1717454129988,2.236,165.47,165.44,0.34]
[1717454131657,2.2357,165.49,165.44,14.79436759]
[1717454131869,2.2357,165.49,165.46,9.07436759]
[1717454132054,22.2357,165.49,165.46,9.07436759]
[1717454132557,7.6159,165.48,165.45,9.07436759]
[1717454132759,7.6159,165.48,165.46,0.34]
[1717454133095,22.2358,165.49,165.46,0.34]
[1717454133298,2.2357,165.5,165.46,0.34]
[1717454133460,5.38,165.48,165.46,0.34]
[1717454133670,5.38,165.49,165.46,0.34]
[1717454133966,7.6157,165.5,165.46,9.41436759]
[1717454134275,20.0,165.49,165.46,9.41436759]
[1717454134658,7.6157,165.5,165.46,9.41436759]
[1717454134861,5.38,165.49,165.46,9.41436759]
[1717454135066,7.6158,165.49,165.46,9.41436759]
[1717454135786,7.6158,165.49,165.46,0.34]
[1717454136168,7.6158,165.49,165.46,9.41436759]
[1717454136363,7.6158,165.49,165.46,0.34]
[1717454136997,5.38,165.48,165.46,0.34]
[1717454138392,5.38,165.48,165.46,9.41436759]
[1717454138568,7.6158,165.49,165.46,9.41436759]
[1717454138768,7.6158,165.49,165.46,0.34]
[1717454141075,5.38,165.49,165.46,0.34]
[1717454141374,5.38,165.49,165.46,9.41436759]
[1717454141596,7.6157,165.5,165.46,9.41436759]
[1717454141778,20.0,165.49,165.46,9.41436759]
[1717454141972,20.0,165.49,165.46,0.34]
[1717454142202,20.0,165.49,165.46,9.07320551]
[1717454142377,22.2357,165.49,165.46,9.07320551]
[1717454143906,22.2357,165.49,165.47,9.07320551]
[1717454144370,27.6157,165.49,165.47,9.07320551]
[1717454144576,27.6157,165.49,165.46,9.07320551]
[1717454144974,2.2359,165.48,165.46,9.07320551]
[1717454146301,27.6158,165.49,165.46,9.07320551]
[1717454148403,7.6159,165.48,165.46,9.07320551]
[1717454149871,7.6159,165.48,165.46,9.07349907]
[1717454151790,2.236,165.47,165.46,9.07349907]
[1717454152002,7.616,165.47,165.45,9.07349907]
[1717454152297,7.616,165.47,165.44,9.07349907]
[1717454152615,5.38,165.46,165.44,9.07349907]
[1717454153290,20.0,165.49,165.42,2.2367]
[1717454153291,7.6163,165.45,165.42,9.07349907]
[1717454153488,2.2362,165.46,165.42,9.07349907]
[1717454153694,5.38,165.45,165.42,9.07349907]
[1717454153913,5.38,165.45,165.42,9.07518274]
[1717454154201,5.38,165.45,165.41,0.2]
[1717454154202,7.6163,165.45,165.41,0.2]
[1717454154405,2.2364,165.44,165.41,0.2]
[1717454154706,7.6164,165.44,165.41,0.2]
[1717454155207,5.38,165.43,165.41,0.2]
[1717454157583,7.6165,165.43,165.41,0.2]
[1717454157999,2.2365,165.44,165.41,0.2]
[1717454158190,5.38,165.42,165.41,0.2]
[1717454160588,7.6167,165.42,165.41,0.2]
[1717454160901,27.6167,165.42,165.41,0.2]
[1717454165723,22.2367,165.42,165.41,0.2]
[1717454165924,27.6167,165.42,165.41,0.2]
[1717454168299,59.6394,165.42,165.41,0.2]
[1717454168694,75.7794,165.42,165.41,0.2]
[1717454171517,75.8294,165.42,165.41,0.2]
[1717454171890,2.2376,165.36,165.3,2.2383]
[1717454172097,5.39,165.34,165.31,0.17]
[1717454173207,5.39,165.34,165.31,0.34]
[1717454173406,2.2376,165.36,165.31,0.34]
[1717454173626,5.39,165.34,165.31,0.34]
[1717454175033,2.2376,165.36,165.31,0.34]
[1717454175245,5.39,165.35,165.31,0.34]
[1717454175454,2.2376,165.36,165.31,0.34]
[1717454176041,2.237,165.4,165.35,5.39]
[1717454176272,14.04885837,165.44,165.36,0.34]
[1717454176408,2.2366,165.43,165.37,2.2372]
[1717454176611,7.6267,165.42,165.38,0.34]
[1717454176945,7.6268,165.41,165.38,0.17]
[1717454177136,5.39,165.4,165.38,0.17]
[1717454177318,5.39,165.4,165.38,30.17]
[1717454177914,5.39,165.4,165.38,30.0]
[1717454179947,7.6268,165.41,165.38,30.0]
[1717454180154,4.4728,165.45,165.38,30.0]
[1717454180330,7.6265,165.44,165.39,0.17]
[1717454180525,20.0,165.43,165.39,30.17]
[1717454180758,14.04885837,165.48,165.39,46.3278]
[1717454180960,2.2356,165.5,165.43,2.2365]
[1717454181132,2.2357,165.49,165.42,7.7967]
[1717454181342,2.2357,165.49,165.43,0.17]
[1717454181548,5.39,165.48,165.43,0.17]
[1717454182061,0.2,165.54,165.44,27.5862]
[1717454182223,2.2353,165.52,165.46,7.6261]
[1717454182430,2.2353,165.52,165.47,6.7301]
[1717454182651,7.6252,165.53,165.47,6.7301]
[1717454183243,7.6252,165.53,165.47,12.1201]
[1717454183448,20.0,165.52,165.47,12.1201]
[1717454184470,0.2,165.54,165.5,6.243]
[1717454184623,0.2,165.54,165.5,11.633]
[1717454184825,0.2,165.54,165.5,6.243]
[1717454185031,7.8251,165.54,165.49,0.34]
[1717454185232,5.39,165.53,165.5,0.34]
[1717454185529,2.4351,165.54,165.5,0.34]
[1717454185737,5.39,165.53,165.5,0.34]
[1717454186031,5.39,165.52,165.5,0.34]
[1717454186236,5.39,165.52,165.47,30.0]
[1717454186448,5.39,165.52,165.48,0.34]
[1717454186646,5.39,165.52,165.49,0.17]
[1717454186842,5.39,165.52,165.49,0.34]
[1717454187955,2.4351,165.54,165.49,0.34]
[1717454188152,5.39,165.52,165.49,0.34]
[1717454190443,5.39,165.51,165.49,0.34]
[1717454193641,5.39,165.52,165.49,0.34]
[1717454195441,0.2,165.54,165.44,6.2639]
[1717454195741,5.39,165.48,165.44,6.2639]
[1717454196361,5.39,165.48,165.44,8.5002]
[1717454196664,5.39,165.49,165.45,0.17]
[1717454196849,5.39,165.49,165.45,0.34]
[1717454203785,7.6257,165.49,165.45,0.34]
[1717454203959,5.39,165.49,165.45,0.34]
[1717454208571,7.6257,165.49,165.45,0.34]
[1717454208958,5.39,165.49,165.45,0.34]
[1717454210263,27.6259,165.48,165.45,0.34]
[1717454211074,22.2359,165.48,165.45,0.34]
[1717454211277,5.39,165.47,165.45,0.34]
[1717454211679,2.2359,165.48,165.45,0.34]
[1717454211881,5.39,165.47,165.45,0.34]
[1717454212176,4.471,165.51,165.44,0.17]
[1717454212177,5.39,165.46,165.44,0.17]
[1717454212382,11.1785,165.5,165.41,2.2368]
[1717454212383,5.39,165.45,165.41,2.2368]
[1717454212674,5.39,165.45,165.42,0.34]
[1717454212880,5.39,165.45,165.42,0.17]
[1717454213585,2.2361,165.47,165.41,2.4068]
[1717454214155,2.2362,165.46,165.42,0.17]
[1717454214355,2.2362,165.46,165.41,0.34]
[1717454220089,5.39,165.45,165.41,0.34]
[1717454221402,7.6263,165.45,165.41,0.34]
[1717454221698,25.39,165.44,165.41,0.34]
[1717454222892,27.6264,165.44,165.41,0.34]
[1717454223201,27.6264,165.44,165.38,2.2372]
[1717454223494,27.6264,165.44,165.39,0.34]
[1717454223866,2.2366,165.43,165.39,0.34]
[1717454224073,7.6266,165.43,165.38,6.8825]
[1717454226882,7.6266,165.43,165.38,0.34]
[1717454227386,5.39,165.42,165.38,0.34]
[1717454229582,22.2365,165.44,165.38,2.5771]
[1717454229788,2.2364,165.45,165.39,2.237]
[1717454230277,5.39,165.44,165.39,2.237]
[1717454230680,20.0,165.43,165.38,2.5772]
[1717454231178,25.39,165.43,165.38,2.5772]
[1717454231388,27.6265,165.43,165.38,2.5772]
[1717454231611,27.6265,165.43,165.38,0.34]
[1717454234132,27.6265,165.43,165.38,2.5772]
[1717454234290,25.39,165.43,165.38,2.5772]
[1717454236726,27.6266,165.43,165.38,0.34]
[1717454239297,25.39,165.43,165.38,2.5772]
[1717454239510,27.6266,165.43,165.38,0.34]
[1717454240409,25.39,165.43,165.38,2.5772]
[1717454240712,25.39,165.43,165.38,8.8736]
[1717454241421,20.0,165.43,165.4,6.2964]
[1717454241596,2.2363,165.45,165.4,11.6864]
[1717454242110,22.2363,165.45,165.4,11.6864]
[1717454242302,22.2363,165.45,165.4,6.2964]
[1717454242303,2.2364,165.44,165.4,6.2964]
[1717454243011,7.6264,165.44,165.4,6.2964]
[1717454243994,22.2363,165.45,165.4,6.2964]
[1717454244208,20.0,165.44,165.41,0.34]
[1717454244394,2.2363,165.45,165.41,0.34]
[1717454244702,22.2363,165.45,165.41,0.34]
[1717454248117,2.2364,165.44,165.41,0.34]
[1717454248405,7.6264,165.44,165.41,0.34]
[1717454248717,2.2364,165.44,165.41,0.34]
[1717454249021,27.6263,165.45,165.41,0.34]
[1717454249212,22.2363,165.45,165.41,0.34]
[1717454249414,7.6263,165.45,165.41,0.34]
[1717454249725,2.2361,165.47,165.42,11.6596]
[1717454250037,2.236,165.48,165.43,0.34]
[1717454250312,2.236,165.48,165.43,6.6096]
[1717454250528,2.236,165.48,165.43,7.82071796]
[1717454251400,2.236,165.47,165.43,7.82071796]
[1717454252004,7.626,165.47,165.43,7.82071796]
[1717454252203,7.626,165.47,165.43,6.6096]
[1717454252927,2.236,165.47,165.44,1.21113191]
[1717454253425,2.236,165.47,165.43,6.6096]
[1717454253426,22.236,165.47,165.43,6.6096]
[1717454253598,2.236,165.47,165.43,6.6096]
[1717454253997,22.236,165.47,165.43,6.6096]
[1717454256501,27.626,165.47,165.43,6.6096]
[1717454258631,22.236,165.47,165.43,6.6096]
[1717454263647,2.2361,165.46,165.43,0.34]
[1717454264723,27.6261,165.47,165.43,0.34]
[1717454268734,25.39,165.47,165.43,6.9764]
[1717454268960,20.0,165.47,165.43,6.9764]
[1717454272345,22.236,165.47,165.43,6.9764]
[1717454278267,7.6259,165.48,165.43,6.9764]
[1717454278555,2.2359,165.48,165.43,6.9764]
[1717454279269,2.2359,165.48,165.44,6.3669]
[1717454279434,2.2359,165.48,165.45,0.34]
[1717454281053,2.2359,165.48,165.45,6.7069]
[1717454282055,2.236,165.47,165.45,6.7069]
[1717454282556,2.2362,165.46,165.43,22.4959]
[1717454282758,22.2361,165.47,165.44,0.17]
[1717454283163,22.2361,165.47,165.44,0.34]
[1717454283746,2.2361,165.47,165.44,0.34]
[1717454284751,2.2361,165.47,165.44,6.7069]
[1717454284965,22.2359,165.48,165.44,15.7801476]
[1717454285143,2.2359,165.48,165.44,6.7069]
[1717454285337,20.0,165.47,165.44,15.7801476]
[1717454285538,2.2359,165.48,165.44,15.7801476]
[1717454285868,2.236,165.47,165.44,15.7801476]
[1717454288764,2.2359,165.48,165.44,15.7801476]
[1717454288963,2.236,165.47,165.44,15.7801476]
[1717454290454,2.236,165.47,165.45,9.0732476]
[1717454291956,2.236,165.47,165.44,15.7801476]
[1717454292280,2.236,165.47,165.45,9.0732476]
[1717454292780,2.2358,165.49,165.44,24.7608476]
[1717454292944,0.2,165.54,165.47,5.39]
[1717454293153,2.2356,165.5,165.48,0.17]
[1717454293364,2.2353,165.53,165.48,20.98683391]
[1717454293674,2.2353,165.52,165.48,20.98683391]
[1717454293857,2.2353,165.52,165.49,9.07313391]
[1717454294380,2.2353,165.52,165.48,15.59683391]
[1717454294570,7.6253,165.52,165.48,15.59683391]
[1717454295462,7.6253,165.52,165.48,6.5237]
[1717454295960,7.6253,165.52,165.48,15.59683391]
[1717454296957,7.6253,165.52,165.48,9.41313391]
[1717454297340,7.6253,165.52,165.48,0.34]
[1717454298969,2.2353,165.53,165.48,0.34]
[1717454299269,5.39,165.52,165.48,0.34]
[1717454299880,0.2,165.54,165.47,9.07313391]
[1717454299881,5.39,165.51,165.47,9.07313391]
[1717454300179,2.2355,165.51,165.47,9.07313391]
[1717454300474,5.39,165.5,165.45,2.2363]
[1717454300682,7.6256,165.5,165.45,9.07229393]
[1717454301283,7.6256,165.5,165.46,0.34]
[1717454302170,7.6256,165.5,165.45,0.34]
[1717454302171,2.2358,165.49,165.45,0.34]
[1717454302387,27.6258,165.49,165.45,0.34]
[1717454304764,2.2359,165.48,165.45,0.34]
[1717454305162,2.2359,165.48,165.45,0.17]
[1717454306887,7.6259,165.48,165.44,9.07229393]
[1717454308783,20.0,165.47,165.43,9.41229393]
[1717454308951,20.0,165.47,165.44,0.34]
[1717454310479,5.39,165.46,165.44,0.17]
[1717454310678,5.39,165.46,165.43,9.07229393]
[1717454311496,27.626,165.47,165.43,9.07229393]
[1717454313373,7.6261,165.46,165.42,9.41229393]
[1717454313561,7.6261,165.46,165.43,0.34]
[1717454313894,2.2363,165.45,165.42,9.07370674]
[1717454314067,7.6263,165.45,165.42,9.07370674]
[1717454314265,7.6263,165.45,165.4,11.31060674]
[1717454314461,7.6263,165.45,165.41,0.34]
[1717454314791,7.6263,165.45,165.4,11.65179994]
[1717454315176,5.39,165.45,165.4,11.65179994]
[1717454315608,7.6262,165.46,165.4,11.65179994]
[1717454315776,20.0,165.45,165.4,11.65179994]
[1717454316276,20.0,165.45,165.4,2.5769]
[1717454316677,22.2363,165.45,165.4,0.34]
[1717454316996,27.6263,165.45,165.4,0.34]
[1717454318506,27.6263,165.45,165.4,2.5769]
[1717454319367,5.39,165.44,165.4,2.5769]
[1717454320676,27.6263,165.45,165.4,2.5769]
[1717454322508,25.39,165.45,165.4,2.5769]
[1717454322714,20.0,165.45,165.4,2.5769]
[1717454322904,2.2362,165.46,165.4,2.5769]
[1717454323219,5.39,165.45,165.4,2.5769]
[1717454323915,2.2362,165.46,165.4,2.5769]
[1717454324208,5.39,165.45,165.4,2.5769]
[1717454326802,7.6263,165.45,165.4,2.5769]
[1717454326974,2.2363,165.45,165.4,2.5769]
[1717454327177,7.6263,165.45,165.4,2.5769]
[1717454330205,20.0,165.47,165.41,2.2368]
[1717454330391,13.0702,165.49,165.43,5.39]
[1717454330392,2.2358,165.49,165.43,5.39]
[1717454330592,2.2358,165.49,165.44,0.34]
[1717454331776,2.2359,165.48,165.44,0.34]
[1717454332381,2.2357,165.5,165.44,7.9663]
[1717454333205,2.2357,165.5,165.45,2.2363]
[1717454333404,2.2357,165.49,165.44,7.9663]
[1717454333795,22.2357,165.49,165.44,2.5763]
[1717454334005,2.2357,165.49,165.44,7.9663]
[1717454334491,22.2357,165.49,165.44,14.6304]
[1717454334896,22.2357,165.49,165.44,9.2404]
[1717454335298,22.2357,165.49,165.44,14.6304]
[1717454336911,20.0,165.49,165.45,18.5075]
[1717454337114,4.6703,165.54,165.46,14.3738]
[1717454337404,5.39,165.52,165.46,14.3738]
[1717454338330,22.2355,165.51,165.46,12.1377]
[1717454338937,22.2355,165.51,165.46,6.7477]
[1717454340409,7.6256,165.5,165.46,0.34]
[1717454340604,2.2358,165.49,165.44,2.2364]
[1717454340830,2.2358,165.49,165.44,7.6264]
[1717454341010,7.6257,165.5,165.44,7.6264]
[1717454341204,2.2357,165.5,165.44,7.6264]
[1717454341413,7.6257,165.5,165.45,2.2362]
[1717454341709,7.6257,165.5,165.45,6.304]
[1717454342328,7.6257,165.5,165.46,0.34]
[1717454343126,2.2359,165.48,165.46,0.34]
[1717454343425,2.2359,165.48,165.43,7.6265]
[1717454343617,7.6259,165.48,165.44,0.34]
[1717454343820,5.39,165.48,165.44,0.34]
[1717454344926,7.6258,165.49,165.44,0.34]
[1717454345099,7.6258,165.49,165.44,2.5764]
[1717454345429,5.39,165.49,165.44,2.5764]
[1717454345621,7.6257,165.5,165.44,14.6051]
[1717454345824,20.0,165.49,165.44,14.6051]
[1717454347016,20.0,165.49,165.45,13.7116]
[1717454347331,2.2357,165.5,165.46,11.8153]
[1717454348537,4.6702,165.54,165.46,11.8153]
[1717454348742,2.2354,165.52,165.48,6.4933]
[1717454349031,2.2353,165.53,165.49,0.34]
[1717454349746,2.2354,165.52,165.49,0.34]
[1717454351006,2.2355,165.51,165.49,0.34]
[1717454351436,2.2355,165.51,165.46,14.2339]
[1717454351614,2.2355,165.51,165.47,0.34]
[1717454352745,2.2355,165.51,165.47,6.9768]
[1717454352945,2.2354,165.52,165.47,6.9768]
[1717454354230,2.2354,165.52,165.47,12.3668]
[1717454355135,20.0,165.53,165.48,6.6474]
[1717454355330,0.2,165.54,165.49,0.34]
[1717454355548,5.39,165.53,165.49,0.34]
[1717454355726,20.0,165.52,165.49,0.34]
[1717454356430,22.2353,165.52,165.49,0.34]
[1717454357046,20.0,165.52,165.49,6.0878]
[1717454357248,22.2353,165.53,165.5,0.34]
[1717454359630,2.2354,165.52,165.5,0.34]
[1717454363033,2.2355,165.51,165.5,0.34]
[1717454363568,2.2355,165.51,165.5,0.17]
[1717454363742,2.2355,165.51,165.47,5.39]
[1717454363987,2.2355,165.51,165.48,0.34]
[1717454364441,2.2355,165.51,165.47,0.34]
[1717454364641,2.2355,165.51,165.48,0.17]
[1717454364841,2.2355,165.51,165.46,5.73]
[1717454366148,2.2355,165.51,165.46,7.9661]
[1717454366465,7.6254,165.52,165.46,7.9661]
[1717454367944,2.2355,165.51,165.46,7.9661]
[1717454368363,7.6255,165.51,165.45,8.3323]
[1717454368664,11.3756,165.54,165.44,7.6264]
[1717454368665,7.6257,165.5,165.44,7.6264]
[1717454369682,9.1409,165.54,165.46,6.3786]
[1717454369981,0.2,165.54,165.5,5.39]
[1717454370156,0.2,165.54,165.51,0.34]
[1717454370660,0.2,165.54,165.51,0.17]
[1717454370869,0.2,165.54,165.5,0.34]
[1717454372568,5.59,165.54,165.5,0.34]
[1717454372763,5.59,165.54,165.51,0.34]
[1717454373068,5.59,165.54,165.49,0.34]
[1717454374668,5.39,165.52,165.48,0.34]
[1717454375171,5.39,165.52,165.49,0.17]
[1717454375467,5.39,165.52,165.47,2.576]
[1717454377378,2.4351,165.54,165.47,2.576]
[1717454377675,5.39,165.53,165.47,2.576]
[1717454377876,2.4351,165.54,165.48,7.6258]
[1717454378082,2.4351,165.54,165.48,2.2358]
[1717454378253,2.4351,165.54,165.49,0.34]
[1717454379073,7.8251,165.54,165.49,0.34]
[1717454379263,20.0,165.53,165.49,0.34]
[1717454379466,27.6252,165.53,165.48,0.34]
[1717454379848,25.39,165.53,165.48,0.34]
[1717454380047,20.0,165.53,165.48,0.34]
[1717454384276,20.0,165.53,165.48,9.41022091]
[1717454385688,22.2352,165.53,165.48,9.41022091]
[1717454385858,22.2352,165.53,165.48,0.34]
[1717454387989,22.2352,165.53,165.48,9.41022091]
[1717454388485,22.2352,165.53,165.48,0.34]
[1717454388987,22.2352,165.53,165.48,9.4103639]
[1717454392471,20.0,165.53,165.48,11.6461639]
[1717454392672,22.2352,165.53,165.48,11.6461639]
[1717454393378,22.2352,165.53,165.48,9.4103639]
[1717454394996,22.2352,165.53,165.49,9.0703639]
[1717454395197,2.2352,165.53,165.49,9.0703639]
[1717454395579,22.2352,165.53,165.49,9.0703639]
[1717454398305,22.2352,165.53,165.48,0.34]
[1717454398514,22.2352,165.53,165.49,9.07019295]
[1717454399616,22.2352,165.53,165.48,0.34]
[1717454399617,22.2352,165.53,165.48,9.41019295]
[1717454401217,2.2354,165.52,165.48,9.41019295]
[1717454401793,2.2356,165.5,165.48,0.17]
[1717454402017,2.2356,165.5,165.47,9.07019295]
[1717454402328,5.39,165.5,165.47,9.07019295]
[1717454402509,40.1174,165.53,165.46,9.24019295]
[1717454402510,7.6258,165.49,165.46,9.24019295]
[1717454403431,7.6258,165.49,165.46,9.07019295]
[1717454404103,7.6258,165.49,165.45,9.07019295]
[1717454404786,5.39,165.49,165.45,9.07019295]
[1717454408519,7.6257,165.5,165.45,9.07019295]
[1717454409407,2.2358,165.49,165.45,9.07019295]
[1717454412538,5.39,165.49,165.45,9.07019295]
[1717454412848,2.2359,165.48,165.44,9.41019295]
[1717454413019,27.6259,165.48,165.44,9.41019295]
[1717454419656,22.2359,165.48,165.44,9.41019295]